bitfinex/quotes_BTCUSD_20220731
["timestamp","ask_amount","ask_price","bid_price","bid_amount"]
[1659243047362,0.051,23806.0,23804.0,0.33628002]
[1659243048307,0.01015871,23806.0,23804.0,0.310498]
[1659243048521,0.001,23806.0,23804.0,0.33734999]
[1659243048961,0.051,23806.0,23805.0,0.05]
[1659243049193,0.051,23806.0,23804.0,0.310498]
[1659243050334,0.001,23806.0,23804.0,0.310498]
[1659243050573,0.001,23806.0,23804.0,0.33734999]
[1659243051074,0.051,23806.0,23804.0,0.310498]
[1659243051842,0.051,23806.0,23804.0,0.33734999]
[1659243052094,0.051,23806.0,23804.0,0.310498]
[1659243052275,0.001,23806.0,23804.0,0.310498]
[1659243052513,0.001,23806.0,23804.0,0.010498]
[1659243052767,0.44825733,23806.0,23804.0,0.010498]
[1659243052996,0.80523099,23805.0,23804.0,0.010498]
[1659243053211,0.80523099,23805.0,23802.0,0.010497]
[1659243053432,0.09436166,23803.0,23802.0,0.010497]
[1659243053677,0.39797366,23803.0,23802.0,0.010497]
[1659243053912,0.09436166,23803.0,23802.0,0.010497]
[1659243054134,0.40725733,23805.0,23802.0,0.010497]
[1659243054340,0.40725733,23805.0,23803.0,0.02685203]
[1659243054341,0.303612,23804.0,23803.0,0.02685203]
[1659243054565,0.40725733,23805.0,23802.0,0.010497]
[1659243054828,0.303612,23804.0,23802.0,0.010497]
[1659243055029,0.303612,23803.0,23802.0,0.010497]
[1659243055255,0.45625733,23805.0,23802.0,0.220475]
[1659243055256,0.049,23805.0,23802.0,0.220475]
[1659243055487,0.049,23805.0,23803.0,0.02949951]
[1659243056217,0.303612,23805.0,23803.0,0.02949951]
[1659243056425,0.31277071,23805.0,23802.0,0.520475]
[1659243056660,0.00915871,23805.0,23802.0,0.520475]
[1659243056887,0.051,23805.0,23803.0,0.02578202]
[1659243057346,0.051,23805.0,23803.0,0.12578202]
[1659243057574,0.051,23805.0,23803.0,0.42578202]
[1659243057793,0.06015871,23805.0,23803.0,0.4]
[1659243058002,0.06015871,23805.0,23804.0,0.5]
[1659243058003,0.051,23805.0,23804.0,0.5]
[1659243058237,0.051,23805.0,23804.0,0.603612]
[1659243058503,0.051,23805.0,23804.0,0.3]
[1659243058659,0.001,23806.0,23804.0,0.3]
[1659243058894,0.001,23806.0,23805.0,0.979823]
[1659243059104,0.01015871,23806.0,23805.0,0.559941]
[1659243059333,0.01015871,23806.0,23805.0,0.259941]
[1659243059558,0.01015871,23806.0,23804.0,0.010497]
[1659243060007,0.303612,23805.0,23804.0,0.010497]
[1659243060237,0.001,23806.0,23804.0,0.010497]
[1659243060900,0.081,23806.0,23804.0,0.010497]
[1659243061140,0.08088617,23806.0,23805.0,0.05]
[1659243061368,0.08088617,23806.0,23804.0,0.03627902]
[1659243062217,0.00088617,23806.0,23804.0,0.03627902]
[1659243062450,0.00088617,23806.0,23805.0,0.05]
[1659243062891,0.08088617,23806.0,23805.0,0.05]
[1659243063096,0.08088617,23806.0,23804.0,0.03627902]
[1659243063764,0.09004488,23806.0,23802.0,0.010497]
[1659243064264,0.303612,23805.0,23802.0,0.010497]
[1659243064505,0.01004488,23806.0,23802.0,0.010497]
[1659243064725,0.61365688,23806.0,23802.0,0.010497]
[1659243064936,0.362612,23805.0,23802.0,0.010497]
[1659243065148,0.303612,23804.0,23802.0,0.010497]
[1659243065366,0.362612,23805.0,23802.0,0.010497]
[1659243065795,0.059,23805.0,23802.0,0.010497]
[1659243065995,0.362612,23805.0,23802.0,0.010497]
[1659243066204,0.303612,23804.0,23802.0,0.010497]
[1659243066427,0.303612,23805.0,23802.0,0.010497]
[1659243066650,0.00889114,23804.0,23802.0,0.010497]
[1659243066862,0.046,23804.0,23802.0,0.03985411]
[1659243068183,0.303612,23805.0,23802.0,0.03985411]
[1659243068400,0.303612,23804.0,23802.0,0.03985411]
[1659243068634,0.30088617,23806.0,23802.0,0.25292267]
[1659243068635,0.00088617,23806.0,23802.0,0.25292267]
[1659243068871,0.00088617,23806.0,23802.0,0.220472]
[1659243068872,0.046,23805.0,23802.0,0.220472]
[1659243069090,0.349612,23805.0,23802.0,0.04294767]
[1659243069317,0.046,23805.0,23802.0,0.03985411]
[1659243069787,0.046,23805.0,23803.0,0.259965]
[1659243070019,0.046,23805.0,23804.0,0.05]
[1659243070710,0.00088617,23806.0,23804.0,0.05]
[1659243070939,0.00088617,23806.0,23804.0,0.154973]
[1659243070940,0.079,23805.0,23804.0,0.154973]
[1659243071157,0.079,23805.0,23804.0,0.504973]
[1659243071450,0.079,23805.0,23804.0,0.454973]
[1659243071655,0.079,23805.0,23804.0,0.504973]
[1659243072104,0.00088617,23806.0,23804.0,0.454973]
[1659243072312,0.00088617,23806.0,23805.0,0.04992689]
[1659243072978,0.04888617,23806.0,23805.0,0.05]
[1659243073410,0.04888617,23806.0,23805.0,0.07578202]
[1659243074284,0.00088617,23806.0,23805.0,0.07705916]
[1659243076747,0.00088617,23806.0,23805.0,0.12705916]
[1659243077186,0.00088617,23806.0,23805.0,0.07705916]
[1659243077412,0.00088617,23806.0,23805.0,0.05]
[1659243078129,0.07988617,23806.0,23805.0,0.05]
[1659243078344,0.07988617,23806.0,23804.0,0.75617602]
[1659243078582,0.07988617,23806.0,23805.0,0.051087]
[1659243078802,0.07988617,23806.0,23805.0,0.001087]
[1659243079255,0.12788617,23806.0,23804.0,0.75617602]
[1659243079497,0.00088617,23806.0,23804.0,0.33627902]
[1659243079726,0.00088617,23806.0,23805.0,0.35]
[1659243079945,0.00088617,23806.0,23805.0,0.05]
[1659243080388,0.04888617,23806.0,23805.0,0.05]
[1659243081271,0.04888617,23806.0,23804.0,0.34901283]
[1659243081494,0.04888617,23806.0,23805.0,0.05]
[1659243081745,0.00088617,23806.0,23805.0,0.05]
[1659243082391,0.04888617,23806.0,23805.0,0.05]
[1659243082603,0.04888617,23806.0,23805.0,0.07578202]
[1659243082817,0.04888617,23806.0,23805.0,0.02578202]
[1659243083706,0.00115374,23806.0,23804.0,0.37323081]
[1659243083917,0.00088617,23806.0,23805.0,0.05]
[1659243084366,0.04888617,23806.0,23805.0,0.05]
[1659243084594,0.05804488,23806.0,23804.0,0.310497]
[1659243084798,0.05804488,23806.0,23805.0,0.3]
[1659243085029,0.7561435,23806.0,23802.0,0.010497]
[1659243085255,0.71086933,23805.0,23799.0,0.0105]
[1659243085470,0.3,23804.0,23799.0,0.0105]
[1659243086571,0.036,23804.0,23799.0,0.0105]
[1659243087055,0.036,23804.0,23799.0,0.3105]
[1659243087300,0.303612,23803.0,23799.0,0.3105]
[1659243087522,0.036,23804.0,23799.0,0.3105]
[1659243087748,0.303612,23803.0,23799.0,0.3105]
[1659243087972,0.40725733,23805.0,23800.0,0.02714463]
[1659243088196,0.603612,23804.0,23800.0,0.02714463]
[1659243088432,0.40725733,23805.0,23800.0,0.02714463]
[1659243088433,0.340612,23803.0,23800.0,0.02714463]
[1659243088652,0.037,23803.0,23800.0,0.02714463]
[1659243089808,0.3,23804.0,23800.0,0.02714463]
[1659243090026,0.00915871,23803.0,23800.0,0.02714463]
[1659243090479,0.037,23803.0,23800.0,0.02714463]
[1659243091157,0.04615871,23803.0,23800.0,0.02714463]
[1659243091821,0.00915871,23803.0,23800.0,0.02714463]
[1659243092978,0.00915871,23803.0,23799.0,0.3105]
[1659243093691,0.00915871,23803.0,23800.0,0.02798443]
[1659243093921,0.04615871,23803.0,23800.0,0.02798443]
[1659243094148,0.037,23803.0,23800.0,0.02798443]
[1659243094375,0.074,23803.0,23800.0,0.02798443]
[1659243095093,0.40725733,23805.0,23800.0,0.02798443]
[1659243095771,0.40725733,23805.0,23800.0,0.03848443]
[1659243096448,0.44725733,23805.0,23800.0,0.03848443]
[1659243097799,0.40725733,23805.0,23800.0,0.03848443]
[1659243098248,0.303612,23804.0,23800.0,0.03848443]
[1659243098478,0.40725733,23805.0,23800.0,0.03848443]
[1659243098696,0.303612,23804.0,23800.0,0.0105]
[1659243098925,0.40725733,23805.0,23800.0,0.0105]
[1659243099151,0.40725733,23804.0,23800.0,0.0105]
[1659243099595,0.40725733,23804.0,23801.0,0.02578202]
[1659243100317,0.00915871,23803.0,23800.0,0.0105]
[1659243100531,0.00915871,23803.0,23800.0,0.03628202]
[1659243100753,0.40725733,23804.0,23800.0,0.03628202]
[1659243101697,0.40725733,23804.0,23801.0,0.00426273]
[1659243102353,0.303612,23803.0,23800.0,0.0105]
[1659243102598,0.41641604,23804.0,23800.0,0.0105]
[1659243103271,0.45241604,23804.0,23800.0,0.0105]
[1659243103760,0.45241604,23804.0,23801.0,0.02578202]
[1659243104203,0.45241604,23804.0,23800.0,0.0105]
[1659243104204,0.41641604,23804.0,23800.0,0.0105]
[1659243104653,0.303612,23803.0,23800.0,0.0105]
[1659243104872,0.45241604,23804.0,23800.0,0.0105]
[1659243105125,0.303612,23803.0,23800.0,0.0105]
[1659243105601,0.45241604,23804.0,23800.0,0.0379835]
[1659243105819,0.303612,23803.0,23800.0,0.0379835]
[1659243106019,0.45241604,23804.0,23800.0,0.0105]
[1659243106237,0.303612,23803.0,23800.0,0.0105]
[1659243106455,0.41641604,23804.0,23800.0,0.0105]
[1659243106900,0.340612,23803.0,23800.0,0.0105]
[1659243107136,0.340612,23803.0,23801.0,0.02748343]
[1659243107331,0.037,23803.0,23801.0,0.02748343]
[1659243107723,0.037,23803.0,23800.0,0.0105]
[1659243108123,0.40725733,23804.0,23800.0,0.0105]
[1659243108124,0.303612,23802.0,23800.0,0.0105]
[1659243108355,0.40725733,23804.0,23800.0,0.03628202]
[1659243108584,0.303612,23803.0,23800.0,0.0105]
[1659243108701,0.40725733,23804.0,23800.0,0.0105]
[1659243108937,0.037,23802.0,23800.0,0.01359356]
[1659243109151,0.037,23802.0,23800.0,0.02314348]
[1659243110248,0.40725733,23804.0,23800.0,0.02314348]
[1659243110464,0.303612,23803.0,23800.0,0.02314348]
[1659243110666,0.40725733,23804.0,23800.0,0.02314348]
[1659243110888,0.303612,23803.0,23800.0,0.02314348]
[1659243111313,0.09443477,23801.0,23800.0,0.0105]
[1659243113143,0.13043477,23801.0,23800.0,0.0105]
[1659243113370,0.13043477,23801.0,23800.0,0.03628202]
[1659243113842,0.13959348,23801.0,23800.0,0.0105]
[1659243114268,0.40725733,23802.0,23800.0,0.0105]
[1659243114488,0.40725733,23802.0,23800.0,0.03648875]
[1659243114933,0.303612,23801.0,23800.0,0.03648875]
[1659243115160,0.44425733,23802.0,23800.0,0.0105]
[1659243115402,0.09443477,23801.0,23800.0,0.0105]
[1659243115833,0.44425733,23802.0,23800.0,0.0105]
[1659243116046,0.09443477,23801.0,23800.0,0.0105]
[1659243116502,0.10359348,23801.0,23800.0,0.0105]
[1659243117034,0.339612,23801.0,23800.0,0.0105]
[1659243117459,0.03626757,23801.0,23800.0,0.0105]
[1659243117679,0.04515871,23801.0,23800.0,0.0105]
[1659243118129,0.036,23801.0,23800.0,0.04002405]
[1659243118360,0.09443477,23801.0,23800.0,0.0105]
[1659243118563,0.00915871,23801.0,23800.0,0.0105]
[1659243118787,0.40725733,23802.0,23800.0,0.0105]
[1659243119015,0.036,23801.0,23800.0,0.0105]
[1659243119687,0.03626757,23801.0,23800.0,0.0105]
[1659243119922,0.036,23801.0,23800.0,0.0105]
[1659243120366,0.40725733,23802.0,23800.0,0.03666551]
[1659243121055,0.036,23801.0,23800.0,0.03666551]
[1659243121715,0.036,23801.0,23800.0,0.0105]
[1659243122411,0.39804677,23800.0,23799.0,0.22051]
[1659243122639,0.81438224,23800.0,23799.0,0.22051]
[1659243122858,0.51077024,23800.0,23794.0,0.04300939]
[1659243123084,0.71086933,23799.0,23795.0,0.010504]
[1659243123370,0.40725733,23798.0,23796.0,0.02578202]
[1659243124058,0.40725733,23798.0,23796.0,0.03628402]
[1659243124264,0.41641604,23798.0,23796.0,0.010502]
[1659243124954,0.45241604,23798.0,23796.0,0.010502]
[1659243125173,0.44325733,23798.0,23796.0,0.03628402]
[1659243125410,0.45241604,23798.0,23796.0,0.03628402]
[1659243125610,0.44325733,23798.0,23796.0,0.310502]
[1659243125815,0.44325733,23798.0,23796.0,0.32314548]
[1659243126249,0.40725733,23798.0,23796.0,0.3489275]
[1659243126655,0.41641604,23798.0,23796.0,0.32314548]
[1659243126935,0.45241604,23798.0,23796.0,0.32314548]
[1659243128370,0.41641604,23798.0,23796.0,0.32314548]
[1659243128844,0.0943542,23797.0,23796.0,0.31264348]
[1659243129053,0.41641604,23798.0,23796.0,0.01264348]
[1659243129272,0.45241604,23798.0,23796.0,0.01264348]
[1659243130612,0.40725733,23798.0,23796.0,0.0384255]
[1659243130821,0.40725733,23798.0,23796.0,0.01264348]
[1659243131045,0.44325733,23798.0,23796.0,0.01264348]
[1659243131486,0.036,23798.0,23796.0,0.01264348]
[1659243132204,0.5838,23802.0,23795.0,0.531059]
[1659243132436,0.71086933,23801.0,23795.0,0.531059]
[1659243132664,0.71086933,23800.0,23796.0,0.01264348]
[1659243132887,0.71086933,23799.0,23796.0,0.01264348]
[1659243133106,0.40725733,23799.0,23796.0,0.01264348]
[1659243133317,0.40725733,23798.0,23797.0,0.05]
[1659243133539,1.02805733,23802.0,23797.0,0.23581802]
[1659243133780,0.303612,23801.0,23797.0,0.2484615]
[1659243133998,0.303612,23800.0,23797.0,0.5589635]
[1659243134226,0.40725733,23802.0,23797.0,0.91205706]
[1659243134447,0.303612,23801.0,23797.0,0.86205706]
[1659243134659,0.40725733,23802.0,23797.0,0.86205706]
[1659243134878,0.303612,23801.0,23797.0,0.91205706]
[1659243135094,0.303612,23800.0,23797.0,0.91205706]
[1659243135326,0.00915871,23799.0,23797.0,0.91205706]
[1659243135562,0.45125733,23802.0,23797.0,0.91205706]
[1659243135827,0.45125733,23802.0,23797.0,0.61205706]
[1659243136060,0.303612,23801.0,23797.0,0.58627504]
[1659243136293,0.40725733,23802.0,23797.0,0.58627504]
[1659243136530,0.40725733,23802.0,23797.0,0.53627504]
[1659243136767,0.40725733,23802.0,23797.0,0.58627504]
[1659243136991,0.45125733,23802.0,23797.0,0.69128504]
[1659243137202,0.044,23802.0,23797.0,0.69128504]
[1659243137416,0.029,23802.0,23797.0,1.02283504]
[1659243137859,0.029,23802.0,23797.0,0.72283504]
[1659243138068,0.029,23802.0,23797.0,0.69128504]
[1659243138589,0.303612,23801.0,23797.0,0.70384241]
[1659243138809,0.70725733,23803.0,23798.0,0.02578202]
[1659243139024,0.347612,23802.0,23797.0,0.65384241]
[1659243139241,0.603612,23801.0,23797.0,0.23318148]
[1659243139464,0.303612,23800.0,23797.0,0.23318148]
[1659243139683,0.70725733,23801.0,23797.0,0.23318148]
[1659243139941,0.40725733,23801.0,23797.0,0.25925109]
[1659243140159,0.40725733,23801.0,23797.0,0.23318148]
[1659243140160,0.303612,23800.0,23797.0,0.23318148]
[1659243140380,0.40725733,23801.0,23797.0,0.23318148]
[1659243140823,0.31277071,23800.0,23797.0,0.23318148]
[1659243141039,0.05015871,23800.0,23797.0,0.23318148]
[1659243142392,0.303612,23799.0,23797.0,0.23318148]
[1659243142624,0.00915871,23800.0,23797.0,0.23318148]
[1659243142830,0.303612,23799.0,23797.0,0.23318148]
[1659243143050,0.05015871,23800.0,23797.0,0.23318148]
[1659243143281,0.303612,23799.0,23797.0,0.23318148]
[1659243143547,0.05015871,23800.0,23797.0,0.2589635]
[1659243144225,0.00915871,23800.0,23797.0,0.23318148]
[1659243144906,0.05015871,23800.0,23797.0,0.23318148]
[1659243145342,0.041,23800.0,23798.0,0.02578202]
[1659243145555,0.041,23800.0,23798.0,0.010501]
[1659243145783,0.041,23800.0,23799.0,0.01264348]
[1659243146027,0.344612,23800.0,23799.0,0.01264348]
[1659243146251,0.40725733,23801.0,23798.0,0.31359456]
[1659243146459,0.303612,23800.0,23798.0,0.31359456]
[1659243146685,0.303612,23799.0,23798.0,0.32314448]
[1659243146920,0.44925733,23801.0,23798.0,0.32314448]
[1659243147146,0.303612,23800.0,23798.0,0.32314448]
[1659243147379,0.303612,23799.0,23798.0,0.32314448]
[1659243147843,0.44925733,23801.0,23798.0,0.32314448]
[1659243148036,0.303612,23800.0,23799.0,0.3]
[1659243148147,0.303612,23800.0,23798.0,0.02314448]
[1659243148348,0.40725733,23801.0,23798.0,0.02314448]
[1659243148610,0.303612,23800.0,23798.0,0.02314448]
[1659243148831,0.00915871,23799.0,23798.0,0.02314448]
[1659243149050,0.041,23800.0,23798.0,0.02314448]
[1659243149264,0.041,23800.0,23798.0,0.010501]
[1659243149695,0.10351291,23799.0,23798.0,0.010501]
[1659243149989,0.303612,23799.0,23798.0,0.010501]
[1659243150223,0.041,23800.0,23798.0,0.010501]
[1659243150681,0.40725733,23801.0,23798.0,0.010501]
[1659243150899,0.35377071,23800.0,23798.0,0.010501]
[1659243151148,0.303612,23799.0,23798.0,0.010501]
[1659243151392,0.05015871,23800.0,23798.0,0.010501]
[1659243151648,0.303612,23799.0,23798.0,0.010501]
[1659243152178,0.31277071,23800.0,23798.0,0.010501]
[1659243152392,0.40725733,23801.0,23798.0,0.010501]
[1659243152626,0.303612,23800.0,23798.0,0.010501]
[1659243152854,0.40725733,23801.0,23798.0,0.01359456]
[1659243153282,0.041,23800.0,23798.0,0.01359456]
[1659243153507,0.041,23800.0,23798.0,0.31359456]
[1659243154656,0.40725733,23801.0,23798.0,0.31359456]
[1659243154880,0.339612,23800.0,23799.0,0.21002]
[1659243155151,0.036,23800.0,23799.0,0.21002]
[1659243155391,0.339612,23800.0,23799.0,0.21002]
[1659243156255,0.578,23804.0,23799.0,0.23580202]
[1659243156485,0.71086933,23803.0,23799.0,0.23607656]
[1659243156704,0.303612,23802.0,23799.0,0.21002]
[1659243156911,0.30387957,23801.0,23799.0,0.21002]
[1659243157134,0.40725733,23803.0,23799.0,0.21002]
[1659243157344,0.303612,23802.0,23799.0,0.21002]
[1659243157567,0.40725733,23803.0,23799.0,0.21002]
[1659243157568,0.303612,23801.0,23799.0,0.21002]
[1659243157786,0.303612,23800.0,23799.0,0.21002]
[1659243158223,0.00915871,23801.0,23799.0,0.21002]
[1659243158454,0.303612,23800.0,23799.0,0.21002]
[1659243158681,0.40725733,23803.0,23799.0,0.21002]
[1659243158960,0.037,23801.0,23799.0,0.21002]
[1659243159170,0.303612,23800.0,23799.0,0.21002]
[1659243159378,0.037,23801.0,23800.0,0.02578202]
[1659243159615,0.340612,23801.0,23800.0,0.02578202]
[1659243159819,0.340612,23801.0,23799.0,0.21002]
[1659243160034,0.303612,23800.0,23799.0,0.21551129]
[1659243160255,0.303612,23800.0,23799.0,0.21522892]
[1659243160457,0.40725733,23803.0,23799.0,0.24101094]
[1659243160674,0.303612,23802.0,23799.0,0.24101094]
[1659243160899,0.036,23800.0,23799.0,0.24101094]
[1659243162161,0.40725733,23803.0,23799.0,0.24101094]
[1659243162385,0.303612,23802.0,23799.0,0.24101094]
[1659243162616,0.30387957,23801.0,23799.0,0.24101094]
[1659243162847,0.303612,23800.0,23799.0,0.20973763]
[1659243163064,0.41641604,23801.0,23799.0,0.20973763]
[1659243163269,0.303612,23800.0,23799.0,0.20973763]
[1659243163710,0.41641604,23801.0,23799.0,0.23579419]
[1659243163957,0.41641604,23801.0,23799.0,0.20973763]
[1659243164180,0.303612,23800.0,23799.0,0.20973763]
[1659243164414,0.40725733,23801.0,23799.0,0.20973763]
[1659243164959,0.037,23800.0,23799.0,0.20973763]
[1659243166212,0.40725733,23801.0,23799.0,0.20973763]
[1659243166491,0.303612,23800.0,23799.0,0.20973763]
[1659243167068,0.44425733,23801.0,23799.0,0.20973763]
[1659243167291,0.303612,23800.0,23799.0,0.20973763]
[1659243167658,0.303612,23800.0,23798.0,0.3]
[1659243167880,0.44425733,23801.0,23798.0,0.010501]
[1659243168297,0.303612,23800.0,23798.0,0.310501]
[1659243168502,0.40725733,23801.0,23798.0,0.310501]
[1659243168714,0.303612,23800.0,23798.0,0.310501]
[1659243168940,0.00026757,23799.0,23798.0,0.310501]
[1659243169179,0.31277071,23799.0,23798.0,0.310501]
[1659243169375,0.00915871,23799.0,23798.0,0.310501]
[1659243169613,0.00915871,23799.0,23798.0,0.3]
[1659243170287,0.036,23800.0,23798.0,0.3]
[1659243170549,0.04515871,23800.0,23797.0,0.54659359]
[1659243170767,0.00915871,23800.0,23797.0,0.54659359]
[1659243170978,0.04615871,23800.0,23797.0,0.54659359]
[1659243172266,0.00915871,23800.0,23797.0,0.54659359]
[1659243172888,0.04589114,23800.0,23797.0,0.54659359]
[1659243173102,0.037,23800.0,23797.0,0.54659359]
[1659243174462,0.40725733,23801.0,23797.0,0.54659359]
[1659243174890,0.303612,23800.0,23797.0,0.54659359]
[1659243175114,0.40725733,23801.0,23797.0,0.54659359]
[1659243175328,0.40725733,23801.0,23797.0,0.520537]
[1659243175551,0.303612,23800.0,23797.0,0.520537]
[1659243175775,0.40725733,23801.0,23797.0,0.520537]
[1659243176219,0.037,23800.0,23797.0,0.520537]
[1659243177089,0.037,23800.0,23798.0,0.02578202]
[1659243177300,0.037,23800.0,23797.0,0.531038]
[1659243177739,0.40725733,23801.0,23797.0,0.531038]
[1659243178003,0.303612,23800.0,23798.0,0.02578202]
[1659243178268,0.303612,23799.0,23798.0,0.02578202]
[1659243178480,0.00915871,23800.0,23797.0,0.531038]
[1659243178928,0.00088617,23806.0,23797.0,0.531038]
[1659243179148,0.40725733,23805.0,23799.0,0.021]
[1659243179371,0.037,23800.0,23799.0,0.321]
[1659243179586,0.037,23800.0,23799.0,0.53201793]
[1659243179828,0.074,23800.0,23799.0,0.53201793]
[1659243180042,0.074,23800.0,23799.0,0.58201793]
[1659243180725,0.3,23804.0,23799.0,0.58201793]
[1659243180951,0.71086933,23803.0,23800.0,0.419991]
[1659243181182,0.00088617,23806.0,23802.0,0.05]
[1659243181408,0.00088617,23806.0,23805.0,0.05]
[1659243181409,0.4081435,23806.0,23805.0,0.05]
[1659243181647,0.00088617,23806.0,23805.0,0.469877]
[1659243181886,0.00088617,23806.0,23805.0,1.073489]
[1659243182117,0.00088617,23806.0,23805.0,1.12342814]
[1659243182340,0.00088617,23806.0,23805.0,1.09927102]
[1659243182564,0.00088617,23806.0,23805.0,0.79565902]
[1659243183227,0.01004488,23806.0,23805.0,0.37578202]
[1659243183441,0.04188617,23806.0,23805.0,0.05]
[1659243184415,0.45830221,23806.0,23801.0,0.74689751]
[1659243184640,0.71086933,23805.0,23801.0,0.74689751]
[1659243184851,0.303612,23804.0,23801.0,0.74689751]
[1659243185071,0.303612,23803.0,23801.0,0.73639851]
[1659243185288,0.303612,23802.0,23801.0,0.73639851]
[1659243185538,0.00915871,23804.0,23801.0,0.73639851]
[1659243186417,0.00915871,23804.0,23802.0,0.3]
[1659243186647,0.71086933,23803.0,23802.0,0.3]
[1659243186917,0.71086933,23803.0,23801.0,0.74689951]
[1659243187085,0.00915871,23804.0,23801.0,0.74689951]
[1659243187086,0.71086933,23802.0,23801.0,0.74689951]
[1659243187302,0.40725733,23802.0,23801.0,1.04689951]
[1659243189052,0.40725733,23802.0,23801.0,0.74689951]
[1659243189258,0.71086933,23802.0,23801.0,0.73639851]
[1659243189513,0.75786933,23802.0,23801.0,0.73639851]
[1659243190723,0.71086933,23802.0,23801.0,0.76470338]
[1659243190942,0.71086933,23802.0,23801.0,1.03639851]
[1659243191162,0.40725733,23802.0,23801.0,1.03639851]
[1659243191408,0.46025733,23802.0,23801.0,1.03639851]
[1659243191818,0.46025733,23802.0,23801.0,1.06218053]
[1659243192269,0.46025733,23802.0,23801.0,1.03639851]
[1659243192484,0.76386933,23802.0,23801.0,0.73639851]
[1659243192699,0.71086933,23802.0,23801.0,0.73639851]
[1659243192930,0.71086933,23802.0,23801.0,0.76470338]
[1659243193163,0.71086933,23802.0,23801.0,1.03639851]
[1659243193446,0.75886933,23802.0,23801.0,1.03639851]
[1659243193786,0.45525733,23802.0,23801.0,1.03639851]
[1659243194209,0.75886933,23802.0,23801.0,1.03639851]
[1659243194587,0.45525733,23802.0,23801.0,1.03639851]
[1659243194781,0.40725733,23802.0,23801.0,1.03639851]
[1659243195121,0.41641604,23802.0,23801.0,1.03639851]
[1659243195391,0.46441604,23802.0,23801.0,1.03639851]
[1659243195818,0.76802804,23802.0,23801.0,0.73639851]
[1659243196597,0.72002804,23802.0,23801.0,0.73639851]
[1659243196959,0.41641604,23802.0,23801.0,0.73639851]
[1659243197494,0.45941604,23802.0,23801.0,0.73639851]
[1659243197715,0.76302804,23802.0,23801.0,0.73639851]
[1659243198635,0.72002804,23802.0,23801.0,0.73639851]
[1659243198877,0.41641604,23802.0,23801.0,0.73639851]
[1659243199495,0.72002804,23802.0,23801.0,0.73639851]
[1659243199799,0.41641604,23802.0,23801.0,0.73639851]
[1659243200014,0.40725733,23802.0,23801.0,1.06627414]
[1659243200214,0.45025733,23802.0,23801.0,1.03639851]
[1659243200881,0.75386933,23802.0,23801.0,1.03639851]
[1659243201165,0.45025733,23802.0,23801.0,1.03639851]
[1659243201394,0.086,23802.0,23801.0,1.03949207]
[1659243201613,0.043,23802.0,23801.0,1.03949207]
[1659243202049,0.043,23802.0,23801.0,1.06547876]
[1659243202300,0.043,23802.0,23801.0,1.03949207]
[1659243202746,0.3,23805.0,23801.0,1.03949207]
[1659243202933,0.71086933,23804.0,23802.0,0.3]
[1659243203142,0.303612,23803.0,23802.0,0.3105]
[1659243203387,0.40725733,23804.0,23802.0,0.33648668]
[1659243203601,0.303612,23803.0,23802.0,0.3105]
[1659243203796,0.40725733,23804.0,23802.0,0.3105]
[1659243204008,0.303612,23803.0,23802.0,0.3105]
[1659243204137,0.40725733,23804.0,23802.0,0.3105]
[1659243204360,0.303612,23803.0,23802.0,0.3105]
[1659243204574,0.30387957,23803.0,23802.0,0.3105]
[1659243204775,0.303612,23803.0,23802.0,0.3105]
[1659243205034,0.40725733,23804.0,23802.0,0.3105]
[1659243205464,0.05389114,23803.0,23802.0,0.3105]
[1659243205670,0.045,23803.0,23802.0,0.3105]
[1659243206665,0.40725733,23804.0,23802.0,0.3105]
[1659243206880,0.303612,23803.0,23802.0,0.3105]
[1659243207111,0.41641604,23804.0,23802.0,0.3105]
[1659243207760,0.303612,23803.0,23802.0,0.3105]
[1659243208417,0.46141604,23804.0,23802.0,0.0105]
[1659243208645,0.303612,23803.0,23802.0,0.0105]
[1659243208876,0.46141604,23804.0,23802.0,0.0105]
[1659243209088,0.303612,23803.0,23802.0,0.0105]
[1659243209307,0.349612,23803.0,23802.0,0.0105]
[1659243210583,0.349612,23803.0,23802.0,0.3105]
[1659243210584,0.046,23803.0,23802.0,0.3105]
[1659243211170,0.40725733,23804.0,23802.0,0.0105]
[1659243211539,0.303612,23803.0,23802.0,0.0105]
[1659243211794,0.303612,23803.0,23802.0,0.3105]
[1659243212038,0.303612,23803.0,23802.0,0.0105]
[1659243212261,0.052,23803.0,23802.0,0.0105]
[1659243212528,0.052,23803.0,23802.0,0.3105]
[1659243212990,0.052,23803.0,23802.0,0.33689304]
[1659243213212,0.052,23803.0,23802.0,0.6435986]
[1659243213424,0.052,23803.0,23802.0,0.6935986]
[1659243213425,0.1,23803.0,23802.0,0.6935986]
[1659243213668,0.048,23803.0,23802.0,1.4049766]
[1659243213886,0.04790405,23803.0,23802.0,1.17441009]
[1659243214124,0.04790405,23803.0,23802.0,1.21865211]
[1659243214559,0.04790405,23803.0,23802.0,1.47226411]
[1659243214774,0.00088617,23806.0,23802.0,1.16865211]
[1659243215065,0.00088617,23806.0,23805.0,0.05]
[1659243215498,0.05988617,23806.0,23805.0,0.05]
[1659243216611,0.06904488,23806.0,23805.0,0.05]
[1659243216825,0.05988617,23806.0,23805.0,0.05]
[1659243217525,0.04988617,23806.0,23805.0,0.05]
[1659243218830,0.00088617,23806.0,23805.0,0.05]
[1659243219489,0.04988617,23806.0,23805.0,0.05]
[1659243220668,0.00088617,23806.0,23805.0,0.05]
[1659243220913,0.00088617,23806.0,23805.0,0.05027849]
[1659243221544,0.05988617,23806.0,23805.0,0.05027849]
[1659243221760,0.05988617,23806.0,23805.0,0.05]
[1659243221974,0.05988617,23806.0,23804.0,0.010498]
[1659243222417,0.05988617,23806.0,23805.0,0.07887558]
[1659243222881,0.00088617,23806.0,23805.0,0.07915407]
[1659243223107,0.00088617,23806.0,23805.0,0.05309356]
[1659243223327,0.00088617,23806.0,23805.0,0.07887558]
[1659243223540,0.05388617,23806.0,23805.0,0.07887558]
[1659243224058,0.05388617,23806.0,23804.0,0.520462]
[1659243224059,0.06304488,23806.0,23804.0,0.220462]
[1659243224284,0.06304488,23806.0,23801.0,0.73639851]
[1659243224285,0.3979662,23805.0,23801.0,0.73639851]
[1659243224516,0.40725733,23805.0,23801.0,0.73639851]